bitfinex-derivatives/quotes_SOLF0:USTF0_20260115
["timestamp","ask_amount","ask_price","bid_price","bid_amount"]
[1768506125935,43.90587507,141.11,141.03,48.58354074]
[1768506126345,46.15925443,141.11,141.03,2.59337936]
[1768506127641,43.90587507,141.11,141.03,48.58354074]
[1768506128441,43.90587507,141.11,141.05,6.3822]
[1768506128744,43.90587507,141.11,141.06,0.34]
[1768506128931,43.90587507,141.11,141.07,0.34]
[1768506129545,44.24587507,141.14,141.07,0.34]
[1768506129745,43.90587507,141.14,141.07,48.58354074]
[1768506130534,43.90587507,141.14,141.09,2.25337936]
[1768506130853,43.90587507,141.14,141.1,0.34]
[1768506131746,43.90587507,141.19,141.11,6.3792]
[1768506131950,46.15925443,141.19,141.1,48.58354074]
[1768506132748,46.15925443,141.19,141.1,54.96334074]
[1768506133240,52.53535443,141.19,141.1,54.96334074]
[1768506133449,52.53535443,141.19,141.1,2.59337936]
[1768506135247,52.53535443,141.19,141.1,2.25337936]
[1768506135556,52.53535443,141.19,141.11,0.34]
[1768506136450,46.15925443,141.19,141.11,0.34]
[1768506138650,43.90587507,141.16,141.08,2.25337936]
[1768506138853,43.90587507,141.14,141.09,0.34]
[1768506139044,43.90587507,141.14,141.06,2.25337936]
[1768506139245,43.90587507,141.14,141.07,0.34]
[1768506139543,43.90587507,141.12,141.05,6.382]
[1768506139741,43.90587507,141.12,141.06,0.34]
[1768506139942,43.90587507,141.12,141.05,6.382]
[1768506140438,43.90587507,141.12,141.04,0.34]
[1768506140736,2.25337936,141.11,141.04,0.34]
[1768506140941,41.3822578,141.1,141.04,0.34]
[1768506141250,41.3822578,141.1,141.03,6.3831]
[1768506141251,41.7222578,141.1,141.03,6.3831]
[1768506141442,2.25337936,141.09,141.02,0.34]
[1768506141753,41.3822578,141.06,141.02,0.34]
[1768506141954,41.3822578,141.06,140.99,43.21428015]
[1768506142138,41.3822578,141.06,141.01,0.34]
[1768506142343,6.3788,141.13,141.03,6.383]
[1768506142649,2.25337936,141.1,141.03,6.383]
[1768506142951,2.25337936,141.11,141.04,0.34]
[1768506143448,0.34,141.12,141.04,6.7225]
[1768506143643,2.59337936,141.12,141.04,6.7225]
[1768506144356,41.3822578,141.11,141.04,6.7225]
[1768506145650,43.87048395,141.09,141.04,6.7225]
[1768506145948,43.87048395,141.09,141.04,0.34]
[1768506146656,43.87048395,141.09,141.04,6.7226]
[1768506148258,43.87048395,141.11,141.05,48.0790777]
[1768506148455,43.87048395,141.13,141.05,41.6968777]
[1768506149460,43.87048395,141.13,141.06,6.3817]
[1768506149754,43.87048395,141.13,141.07,0.32]
[1768506150259,43.87048395,141.13,141.07,6.7013]
[1768506150453,43.87048395,141.16,141.07,42.0168777]
[1768506150958,5.17843891,141.15,141.07,42.0168777]
[1768506151159,43.87048395,141.16,141.07,42.0168777]
[1768506151756,43.87048395,141.16,141.09,6.3803]
[1768506151959,43.87048395,141.16,141.1,0.32]
[1768506153062,43.87048395,141.16,141.07,41.6968777]
[1768506153259,43.87048395,141.16,141.08,0.32]
[1768506153961,43.87048395,141.16,141.09,6.3804]
[1768506156062,43.87048395,141.16,141.1,6.3798]
[1768506156558,0.32,141.18,141.11,0.32]
[1768506156757,44.19048395,141.18,141.11,0.32]
[1768506157157,43.87048395,141.18,141.11,0.32]
[1768506157359,43.87048395,141.18,141.12,6.379]
[1768506157858,43.87048395,141.18,141.11,0.32]
[1768506158058,43.87048395,141.18,141.12,0.32]
[1768506162465,43.87048395,141.18,141.09,6.38]
[1768506162671,43.87048395,141.16,141.09,6.7]
[1768506163566,43.87048395,141.16,141.1,6.3799]
[1768506163960,43.87048395,141.16,141.12,6.3791]
[1768506164168,43.87048395,141.18,141.12,6.6991]
[1768506167977,50.24698395,141.18,141.12,0.32]
[1768506168162,43.87048395,141.18,141.1,6.3796]
[1768506168368,43.87048395,141.18,141.09,0.32]
[1768506169675,5.19437895,141.17,141.09,0.32]
[1768506169864,44.19048395,141.16,141.09,6.7004]
[1768506171277,2.25123396,141.15,141.09,6.7004]
[1768506171472,41.2670755,141.15,141.09,6.7004]
[1768506174781,41.2670755,141.15,141.1,6.3799]
[1768506176176,39.01584154,141.15,141.1,6.3799]
[1768506176483,41.2670755,141.17,141.09,43.30797438]
[1768506176676,39.01584154,141.17,141.1,40.73674042]
[1768506176876,39.01584154,141.17,141.13,6.3786]
[1768506177683,41.5870755,141.19,141.13,6.3786]
[1768506177873,41.2670755,141.19,141.13,6.3786]
[1768506178076,39.01584154,141.19,141.13,6.3786]
[1768506179086,39.01584154,141.19,141.12,41.05674042]
[1768506179989,41.2670755,141.21,141.15,6.3777]
[1768506180190,5.19650521,141.2,141.15,6.3777]
[1768506180388,41.2670755,141.21,141.15,0.32]
[1768506180581,44.21229845,141.2,141.15,0.32]
[1768506180782,39.01584154,141.2,141.15,0.32]
[1768506181475,39.01584154,141.22,141.13,40.73674042]
[1768506181786,39.01584154,141.2,141.14,0.32]
[1768506182485,39.01584154,141.2,141.15,6.3777]
[1768506183585,39.01584154,141.23,141.16,40.73674042]
[1768506183778,39.01584154,141.23,141.17,2.57123396]
[1768506183983,39.01584154,141.25,141.17,43.30797438]
[1768506184383,39.01584154,141.25,141.19,6.3758]
[1768506184579,39.01584154,141.25,141.2,0.32]
[1768506184782,39.01584154,141.25,141.19,6.3758]
[1768506184991,39.01584154,141.25,141.19,6.6958]
[1768506185788,39.01584154,141.25,141.2,6.3754]
[1768506185996,39.01584154,141.25,141.19,41.05674042]
[1768506187794,39.01584154,141.25,141.19,47.43234042]
[1768506187996,39.01584154,141.25,141.19,41.05674042]
[1768506188698,39.01584154,141.25,141.19,0.32]
[1768506188892,39.01584154,141.25,141.2,0.32]
[1768506189286,39.01584154,141.28,141.21,6.375]
[1768506190692,39.01584154,141.28,141.22,0.32]
[1768506191693,45.38774154,141.28,141.21,0.32]
[1768506192497,39.01584154,141.26,141.19,0.32]
[1768506192693,39.33584154,141.26,141.19,0.32]
[1768506193191,39.33584154,141.26,141.19,6.6958]
[1768506194197,39.33584154,141.26,141.2,6.3754]
[1768506194400,39.01584154,141.26,141.19,41.05674042]
[1768506194596,39.01584154,141.28,141.2,40.73674042]
[1768506195104,39.01584154,141.28,141.19,0.32]
[1768506195303,39.01584154,141.28,141.2,6.3751]
[1768506195491,39.01584154,141.28,141.21,0.32]
[1768506196392,39.01584154,141.26,141.18,6.376]
[1768506196592,39.01584154,141.26,141.18,6.696]
[1768506200096,39.01584154,141.26,141.19,6.3759]
[1768506201299,39.01584154,141.26,141.2,6.3754]
[1768506201896,39.01584154,141.26,141.21,6.695]
[1768506202803,39.01584154,141.26,141.21,0.32]
[1768506204394,39.01584154,141.26,141.2,0.32]
[1768506205601,45.38874154,141.26,141.2,0.32]
[1768506207316,48.90182953,141.26,141.2,0.32]
[1768506207608,39.52662849,141.25,141.2,0.32]
[1768506210708,45.89992849,141.25,141.19,0.32]
[1768506211104,39.52662849,141.25,141.19,0.32]
[1768506212108,45.89982849,141.25,141.19,0.32]
[1768506212515,39.52662849,141.23,141.16,39.59018139]
[1768506213812,39.52662849,141.23,141.17,6.3768]
[1768506214418,39.52662849,141.23,141.15,6.3773]
[1768506214614,39.52662849,141.23,141.16,0.32]
[1768506215211,45.90082849,141.23,141.16,6.6973]
[1768506215910,39.52662849,141.23,141.16,6.6973]
[1768506216917,39.52662849,141.23,141.17,6.3766]
[1768506219024,39.52662849,141.23,141.18,6.3764]
[1768506219412,0.32,141.24,141.16,39.59018139]
[1768506219611,39.52662849,141.25,141.18,39.27018139]
[1768506219818,39.52662849,141.27,141.19,39.59018139]
[1768506220022,5.19522741,141.26,141.19,39.59018139]
[1768506220324,39.52662849,141.27,141.19,39.59018139]
[1768506220522,5.19850517,141.26,141.19,39.59018139]
[1768506220822,39.52662849,141.27,141.22,6.3745]
[1768506221017,5.19856552,141.26,141.22,6.6945]
[1768506221223,39.52662849,141.27,141.22,6.6945]
[1768506221428,5.2020763,141.26,141.22,6.6945]
[1768506221719,39.52662849,141.27,141.22,6.6945]
[1768506223221,39.52662849,141.3,141.22,39.59018139]
[1768506223522,5.20531897,141.29,141.22,39.59018139]
[1768506223720,39.52662849,141.3,141.22,39.59018139]
[1768506223919,5.20534146,141.29,141.22,39.59018139]
[1768506224116,39.52662849,141.3,141.22,39.59018139]
[1768506224320,5.20435468,141.29,141.22,39.59018139]
[1768506224519,39.52662849,141.3,141.22,39.59018139]
[1768506225615,39.52662849,141.3,141.25,6.3731]
[1768506225924,39.52662849,141.3,141.25,6.6931]
[1768506226424,39.84662849,141.32,141.26,6.3727]
[1768506226621,5.20561817,141.31,141.26,6.3727]
[1768506226825,39.84662849,141.32,141.26,6.3727]
[1768506227019,5.20562042,141.31,141.26,6.3727]
[1768506227219,39.84662849,141.32,141.26,6.3727]
[1768506227524,39.84662849,141.34,141.25,39.59018139]
[1768506227821,39.84662849,141.34,141.26,39.27018139]
[1768506227822,39.52662849,141.34,141.26,39.27018139]
[1768506228021,39.52662849,141.34,141.27,138.39578139]
[1768506228223,39.52662849,141.34,141.28,0.32]
[1768506228424,39.52662849,141.37,141.32,6.37]
[1768506228731,39.52662849,141.37,141.32,6.69]
[1768506229228,39.52662849,141.37,141.32,0.32]
[1768506232128,38.12208401,141.35,141.26,138.77368316]
[1768506232323,41.635172,141.34,141.27,0.32]
[1768506233927,41.635172,141.34,141.27,6.6922]
[1768506236240,41.635172,141.34,141.25,6.3729]
[1768506236241,41.955172,141.34,141.25,6.3729]
[1768506236442,41.955172,141.34,141.26,0.32]
[1768506236735,38.12208401,141.31,141.26,0.32]
[1768506236940,38.12208401,141.31,141.27,6.3722]
[1768506238339,38.12208401,141.31,141.26,0.32]
[1768506240037,38.12208401,141.31,141.23,6.374]
[1768506240339,38.12208401,141.31,141.25,0.32]
[1768506240546,38.12208401,141.29,141.24,0.32]
[1768506245947,3.51308799,141.32,141.24,0.32]
[1768506245948,38.12208401,141.32,141.25,6.3731]
[1768506246246,38.12208401,141.32,141.24,39.96488316]
[1768506247151,38.12208401,141.32,141.26,6.3727]
[1768506247449,38.12208401,141.32,141.27,0.32]
[1768506250460,38.12208401,141.32,141.24,48.26370577]
[1768506250753,38.12208401,141.3,141.25,0.32]
[1768506251146,38.12208401,141.3,141.25,6.6931]
[1768506252252,38.12208401,141.3,141.24,6.3734]
[1768506252644,40.36760662,141.29,141.24,6.6934]
[1768506254350,40.36760662,141.32,141.24,42.21040577]
[1768506254959,38.12208401,141.32,141.27,6.3723]
[1768506255166,38.12208401,141.32,141.28,0.3]
[1768506255958,38.12208401,141.32,141.25,6.3729]
[1768506256162,40.36760662,141.32,141.26,0.3]
[1768506259167,38.12208401,141.32,141.25,6.3729]
[1768506259360,40.36760662,141.31,141.26,0.3]
[1768506261170,38.12208401,141.31,141.26,0.3]
[1768506261561,38.12208401,141.31,141.26,6.6727]
[1768506262661,38.69502992,141.33,141.27,6.3722]
[1768506262866,36.44950731,141.33,141.26,37.98248388]
[1768506263772,36.44950731,141.33,141.28,6.3718]
[1768506263968,36.44950731,141.33,141.29,0.3]
[1768506267264,40.81827604,141.36,141.29,0.3]
[1768506267463,40.51827604,141.34,141.29,0.3]
[1768506269775,38.27275343,141.34,141.29,6.6714]
[1768506280078,38.27275343,141.34,141.3,6.371]
[1768506280382,244.00100729,141.38,141.29,41.01593896]
[1768506280681,244.00100729,141.38,141.31,6.3703]
[1768506280881,244.00100729,141.38,141.32,0.3]
[1768506281075,2.24552261,141.37,141.32,0.3]
[1768506282281,38.27275343,141.36,141.32,0.3]
[1768506282681,38.27275343,141.36,141.26,137.60021635]
[1768506282873,38.27275343,141.34,141.27,41.01593896]
[1768506283789,38.27275343,141.34,141.3,6.3709]
[1768506283990,38.27275343,141.34,141.31,0.3]
[1768506285089,246.2465299,141.38,141.31,6.6704]
[1768506286478,246.2465299,141.38,141.32,6.3699]
[1768506287189,35.00971548,141.37,141.32,6.3699]
[1768506288888,35.00971548,141.37,141.33,6.3696]
[1768506289092,35.20113564,141.39,141.34,0.3]
[1768506289596,35.20113564,141.39,141.34,6.6691]
[1768506295612,35.65423978,141.36,141.33,0.3]
[1768506296710,35.65423978,141.36,141.29,38.16622224]
[1768506297009,35.65423978,141.36,141.3,0.3]
[1768506297909,35.65423978,141.36,141.31,6.3704]
[1768506298407,35.65423978,141.36,141.3,0.3]
[1768506298408,35.65423978,141.36,141.28,2.24552261]
[1768506298707,35.65423978,141.36,141.29,0.3]
[1768506299812,35.65423978,141.36,141.3,6.3709]
[1768506300714,36.07418061,141.34,141.28,6.3715]
[1768506300913,36.07418061,141.34,141.29,0.3]
[1768506301811,36.07418061,141.34,141.29,6.6714]
[1768506302810,36.23587536,141.36,141.3,6.3709]
[1768506303012,36.23587536,141.36,141.29,38.46622224]
[1768506303209,36.23587536,141.38,141.3,40.41174485]
[1768506303407,36.23587536,141.38,141.33,6.3695]
[1768506303603,0.3,141.42,141.34,0.3]
[1768506303604,36.31499747,141.4,141.34,0.3]
[1768506305608,36.31499747,141.4,141.34,2.54552261]
[1768506305809,36.31499747,141.4,141.35,6.3687]
[1768506306406,36.31499747,141.4,141.36,6.3682]
[1768506306606,36.31499747,141.4,141.37,0.3]
[1768506314109,36.31499747,141.4,141.29,41.6700293]
[1768506314310,36.31499747,141.4,141.31,0.3]
[1768506314514,36.82977589,141.38,141.31,0.3]
[1768506314818,36.82977589,141.36,141.31,0.3]
[1768506315511,36.82977589,141.36,141.26,38.16622224]
[1768506315716,36.82977589,141.36,141.27,38.46622224]
[1768506316613,36.82977589,141.36,141.29,6.3713]
[1768506316818,36.82977589,141.36,141.3,0.3]
[1768506317605,36.82977589,141.36,141.3,6.6709]
[1768506318812,36.82977589,141.36,141.31,6.3704]
[1768506320021,36.82977589,141.36,141.3,0.3]
[1768506321024,36.63952027,141.34,141.3,0.3]
[1768506324321,3.50380706,141.36,141.31,6.3704]
[1768506324322,36.60348945,141.36,141.31,6.3704]
[1768506325318,36.66709275,141.4,141.3,39.86420047]
[1768506325925,36.66709275,141.4,141.33,6.3695]
[1768506326225,36.66709275,141.4,141.34,0.3]
[1768506329320,36.66709275,141.4,141.34,6.6691]
[1768506329828,6.3654,141.43,141.34,38.93460911]
[1768506329829,0.3,141.43,141.34,38.93460911]
[1768506330023,3.50380706,141.44,141.34,38.93460911]
[1768506330420,6.3652,141.43,141.31,137.72930911]
[1768506330722,3.50380706,141.42,141.32,0.3]
[1768506331627,3.80380706,141.42,141.32,0.3]
[1768506331823,25.99647062,141.41,141.35,6.3687]
[1768506332019,25.99647062,141.41,141.35,0.3]
[1768506332825,26.07972694,141.39,141.34,0.3]
[1768506337337,26.48161222,141.41,141.34,38.93460911]
[1768506338737,26.55915387,141.43,141.36,38.63460911]
[1768506339039,26.55915387,141.43,141.35,99.067]
[1768506339040,26.55915387,141.45,141.37,38.93460911]
[1768506339942,26.63581115,141.47,141.38,38.63460911]
[1768506341940,26.63581115,141.47,141.4,6.3663]
[1768506342148,26.63581115,141.47,141.41,0.3]
[1768506342539,26.63581115,141.47,141.4,6.3663]
[1768506342734,26.86091171,141.45,141.41,0.3]
[1768506342936,26.86091171,141.45,141.36,38.63460911]
[1768506343143,26.86091171,141.45,141.37,0.3]
[1768506343937,25.43821264,141.43,141.34,38.63460911]
[1768506344141,25.43821264,141.43,141.35,0.3]
[1768506344344,25.43821264,141.43,141.37,6.3678]
[1768506344546,25.43821264,141.43,141.38,0.3]
[1768506346945,25.43821264,141.43,141.38,6.6672]
[1768506347341,25.50471018,141.46,141.38,6.6672]
[1768506347544,30.71398092,141.45,141.38,6.6672]
[1768506347850,25.50471018,141.45,141.38,6.6672]
[1768506348049,9.86630706,141.49,141.4,6.3664]
[1768506348248,31.01431347,141.48,141.41,0.3]
[1768506348450,30.71091237,141.47,141.41,0.3]
[1768506348645,25.50130908,141.47,141.41,0.3]
[1768506351654,25.50130908,141.47,141.41,6.666]
[1768506355059,0.3,141.48,141.42,6.3655]
[1768506355257,25.46194943,141.49,141.42,6.3655]
[1768506355456,18.70781623,141.5,141.42,6.3655]
[1768506355457,18.21193168,141.5,141.44,43.18887286]
[1768506355752,18.21193168,141.5,141.45,39.9850658]
[1768506356154,25.45917285,141.49,141.39,39.6850658]
[1768506356360,25.45917285,141.49,141.4,0.3]
[1768506356858,25.45917285,141.49,141.4,43.48887286]
[1768506357256,25.45917285,141.49,141.41,6.3656]
[1768506357863,25.45917285,141.49,141.42,6.3655]
[1768506358061,25.45917285,141.49,141.43,0.3]
[1768506362766,25.45917285,141.49,141.43,6.665]
[1768506363365,25.45917285,141.49,141.43,0.3]
[1768506364567,25.45917285,141.49,141.43,6.665]
[1768506364973,25.45917285,141.49,141.43,0.3]
[1768506366461,25.45917285,141.49,141.43,6.6649]
[1768506371382,27.6996275,141.49,141.43,6.6649]
[1768506373085,25.42000437,141.46,141.42,0.28]
[1768506373480,25.13822218,141.44,141.39,0.28]
[1768506373880,25.13822218,141.44,141.4,6.3664]
[1768506377078,25.13822218,141.44,141.39,0.28]
[1768506378792,18.83644258,141.46,141.39,0.28]
[1768506378986,18.83644258,141.46,141.39,39.9650658]
[1768506379192,21.35689723,141.49,141.4,41.92552045]
[1768506379486,24.06277671,141.48,141.4,41.92552045]
[1768506379684,18.84877475,141.48,141.4,41.92552045]
[1768506380281,37.07281295,141.5,141.4,41.92552045]
[1768506380492,5.21822156,141.49,141.42,41.92552045]
[1768506380692,37.07281295,141.5,141.43,0.28]
[1768506380899,5.21776249,141.49,141.43,0.28]
[1768506381086,37.07281295,141.5,141.43,41.672364]
[1768506381784,37.07281295,141.5,141.43,48.037264]
[1768506383288,37.07281295,141.5,141.44,6.3646]
[1768506386296,37.07281295,141.5,141.43,41.672364]
[1768506386500,18.93130707,141.49,141.43,41.672364]
[1768506386702,18.93130707,141.49,141.43,0.28]
[1768506388598,18.21193168,141.5,141.43,43.26125403]
[1768506389903,18.21193168,141.5,141.46,6.3637]
[1768506390092,18.21193168,141.5,141.46,6.6437]
[1768506390902,18.21193168,141.5,141.46,0.28]
[1768506390903,4.378e-05,141.5,141.46,0.28]
[1768506391598,4.378e-05,141.5,141.48,6.3628]
[1768506392103,4.378e-05,141.5,141.49,0.28]
[1768506394706,18.99634339,141.55,141.49,6.6424]
[1768506394905,24.23961685,141.54,141.49,6.6424]
[1768506395095,5.22274236,141.53,141.49,6.6424]
[1768506395299,19.01687449,141.54,141.49,6.6424]
[1768506395496,19.01687449,141.54,141.49,0.28]
[1768506396109,19.01687449,141.54,141.49,6.6423]
[1768506396505,19.01687449,141.54,141.49,0.28]
[1768506396701,2.24045465,141.56,141.51,6.3615]
[1768506396903,5.2205848,141.55,141.49,41.02079938]
[1768506397102,8.48e-05,141.54,141.49,41.02079938]
[1768506397303,19.0379136,141.57,141.49,41.02079938]
[1768506397899,19.0379136,141.57,141.51,6.3612]
[1768506399113,19.0379136,141.57,141.52,6.361]
[1768506399311,19.0379136,141.57,141.52,0.28]
[1768506400018,19.0379136,141.57,141.53,6.3605]
[1768506400210,19.0379136,141.57,141.52,0.28]
[1768506401007,1.23000795,141.62,141.52,0.28]
[1768506401008,19.07792002,141.6,141.52,0.28]
[1768506401212,18.51792002,141.55,141.5,0.28]
[1768506401412,18.51792002,141.55,141.49,0.28]
[1768506401617,18.24915006,141.53,141.46,6.3634]
[1768506401918,20.20960471,141.52,141.47,0.28]
[1768506402315,17.70081137,141.49,141.4,139.77299938]
[1768506402620,17.70081137,141.49,141.41,41.02079938]
[1768506402821,17.70081137,141.49,141.42,42.98125403]
[1768506403022,20.22126602,141.52,141.43,40.74079938]
[1768506403322,20.22126602,141.52,141.44,43.26125403]
[1768506403514,17.98081137,141.52,141.44,43.26125403]
[1768506404118,17.70081137,141.52,141.44,43.26125403]
[1768506404320,17.71305767,141.55,141.46,42.98125403]
[1768506404520,17.71305767,141.55,141.48,2.24045465]
[1768506409226,17.71305767,141.55,141.48,2.24045465]
[1768506409628,17.71305767,141.55,141.47,47.38399938]
[1768506409927,17.71305767,141.55,141.48,2.24045465]
[1768506410128,17.71305767,141.55,141.48,49.34395403]
[1768506412232,17.98474462,141.57,141.5,2.24045465]
[1768506412421,17.98474462,141.57,141.51,0.28]
[1768506413831,17.70474462,141.57,141.52,2.24045465]
[1768506415533,17.69500609,141.6,141.52,41.07090014]
[1768506415934,17.69500609,141.6,141.54,2.24045465]
[1768506416127,17.69500609,141.6,141.55,0.28]
[1768506418235,17.69500609,141.6,141.55,6.6397]
[1768506418534,17.68722854,141.62,141.55,6.6397]
[1768506418736,17.68722854,141.62,141.55,8.88015465]
[1768506418935,17.68722854,141.62,141.56,6.359]
[1768506419131,17.68722854,141.62,141.55,41.35090014]
[1768506420331,17.68722854,141.62,141.57,2.24045465]
[1768506420534,17.68722854,141.62,141.58,0.28]
[1768506422830,17.68722854,141.62,141.55,47.43030014]
[1768506422831,17.68722854,141.62,141.56,0.28]
[1768506423438,17.68722854,141.62,141.56,6.6391]
[1768506423638,17.68722854,141.62,141.57,2.24045465]
[1768506425330,17.68722854,141.62,141.56,6.6391]
[1768506425727,19.92768319,141.62,141.54,6.36]
[1768506425931,17.67040173,141.61,141.54,0.28]
[1768506426131,17.67040173,141.59,141.52,0.28]
[1768506426635,17.67040173,141.59,141.5,8.60215465]
[1768506426831,17.66821981,141.57,141.5,8.88215465]
[1768506427027,17.94821981,141.57,141.5,8.88215465]
[1768506428246,17.94821981,141.57,141.5,6.6417]
[1768506430140,17.94821981,141.57,141.5,0.28]
[1768506430840,17.94821981,141.57,141.5,6.6419]
[1768506432038,17.94821981,141.57,141.51,6.3615]
[1768506432241,17.65870655,141.63,141.5,41.35090014]
[1768506432442,145.4778,141.66,141.52,41.07090014]
[1768506432443,17.65645481,141.6,141.52,41.07090014]
[1768506432635,17.93645481,141.59,141.52,41.07090014]
[1768506433139,17.65645481,141.59,141.53,0.28]
[1768506433335,8.59695465,141.63,141.53,0.28]
[1768506433336,17.65645481,141.62,141.53,39.11044549]
[1768506433540,17.93415842,141.61,141.53,39.11044549]
[1768506434942,17.93415842,141.61,141.54,6.36]
[1768506435545,17.93415842,141.61,141.54,45.19044549]
[1768506435848,33.939,141.67,141.54,45.19044549]
[1768506435849,17.64999765,141.64,141.54,42.32471149]
[1768506436042,17.92999765,141.64,141.54,42.32471149]
[1768506436746,17.92999765,141.64,141.57,6.3586]
[1768506437347,17.92999765,141.64,141.56,42.60471149]
[1768506438044,17.92999765,141.64,141.56,0.28]
[1768506438442,17.64322422,141.62,141.56,6.6392]
[1768506439045,17.92322422,141.64,141.56,39.11044549]
[1768506440853,17.92322422,141.64,141.58,6.3583]
[1768506443153,17.64322422,141.64,141.58,6.3583]
[1768506444556,17.64322422,141.64,141.59,0.28]
[1768506445552,17.64322422,141.64,141.59,6.6379]
[1768506445754,17.64322422,141.64,141.57,0.28]
[1768506445954,17.64322422,141.64,141.55,38.54159552]
[1768506446254,17.64322422,141.64,141.55,38.82159552]
[1768506446757,17.60570204,141.62,141.56,6.3592]
[1768506449248,17.60570204,141.62,141.57,6.3587]
[1768506449449,17.60070206,141.64,141.55,42.31586152]
[1768506449648,17.60070206,141.64,141.56,38.82159552]
[1768506450453,17.60070206,141.64,141.56,0.28]
[1768506451760,23.95398757,141.63,141.56,6.6393]
[1768506452055,0.28,141.62,141.56,6.6393]
[1768506452756,17.87661412,141.62,141.56,6.6393]
[1768506452958,24.23321412,141.62,141.56,0.28]
[1768506454055,17.59504975,141.61,141.56,0.28]
[1768506454658,17.59504975,141.61,141.55,6.3597]
[1768506455556,17.59504975,141.61,141.54,38.82159552]
[1768506456853,17.59076507,141.6,141.51,42.03586152]
[1768506457054,17.59076507,141.58,141.52,0.28]
[1768506457554,17.59076507,141.58,141.52,6.6407]
[1768506458057,17.59076507,141.58,141.52,45.18229552]
[1768506458255,0.28,141.59,141.52,45.18229552]
[1768506458661,17.86805824,141.59,141.52,45.18229552]
[1768506460160,17.86805824,141.59,141.52,38.82159552]
[1768506460359,24.22605824,141.59,141.52,38.82159552]
[1768506460761,17.86805824,141.59,141.52,45.18259552]
[1768506461361,17.86805824,141.59,141.52,38.82159552]
[1768506462065,17.86805824,141.59,141.52,45.18269552]
[1768506463468,17.86805824,141.59,141.53,44.90219552]
[1768506464866,17.86805824,141.59,141.54,6.3602]
[1768506464867,17.58805824,141.59,141.54,6.3602]
[1768506465166,17.86034437,141.61,141.53,38.54159552]
[1768506465566,17.86034437,141.61,141.55,44.90109552]
[1768506465767,0.28,141.61,141.55,38.82159552]
[1768506466772,0.28,141.61,141.56,6.3592]
[1768506467270,17.78693843,141.61,141.56,6.3592]
[1768506467874,17.78693843,141.61,141.55,38.82159552]
[1768506468276,24.14393843,141.61,141.55,38.82159552]
[1768506469379,17.78693843,141.61,141.55,45.18129552]
[1768506470379,17.78693843,141.61,141.55,0.28]
[1768506470783,17.78693843,141.61,141.53,6.6402]
[1768506470990,23.72557731,141.6,141.53,6.6402]
[1768506471686,6.3579,141.59,141.53,0.28]
[1768506471886,23.69170301,141.59,141.53,0.28]
[1768506472785,17.58052768,141.58,141.51,6.3615]
[1768506472985,17.58052768,141.58,141.51,6.6415]
[1768506474791,17.23380874,141.6,141.52,47.55535476]
[1768506475097,0.28,141.59,141.52,47.55535476]
[1768506475679,0.28,141.59,141.52,41.19435476]
[1768506475887,0.28,141.59,141.51,3.774266]
[1768506475888,0.28,141.59,141.53,47.55495476]
[1768506476281,17.51380874,141.6,141.53,47.55495476]
[1768506477282,21.00807474,141.6,141.5,41.19435476]
[1768506477990,17.13646417,141.57,141.5,41.19435476]
[1768506478288,0.28,141.56,141.5,41.19435476]
[1768506478688,0.28,141.56,141.5,47.55615476]
[1768506480994,17.32303327,141.56,141.49,0.28]
[1768506481185,17.32303327,141.56,141.47,41.19435476]
[1768506481386,17.04303327,141.53,141.43,47.55935476]
[1768506481586,17.01274499,141.51,141.43,47.83935476]
[1768506482893,23.37434499,141.51,141.43,47.83935476]
[1768506483189,16.98294246,141.5,141.39,41.19435476]
[1768506483385,16.95381784,141.47,141.39,41.19435476]
[1768506483691,17.23381784,141.46,141.39,41.19435476]
[1768506484884,6.3643,141.45,141.39,41.19435476]
[1768506485590,23.26165108,141.45,141.38,0.28]
[1768506486693,23.26165108,141.45,141.36,44.68862076]
[1768506486892,23.26165108,141.45,141.36,44.96862076]
[1768506487896,16.89735108,141.45,141.36,44.96862076]
[1768506488901,16.89735108,141.45,141.36,41.47435476]
[1768506489698,23.26185108,141.45,141.36,41.47435476]
[1768506490103,16.78842964,141.44,141.36,41.47435476]
[1768506490404,17.04170812,141.43,141.36,41.47435476]
[1768506491095,16.76170812,141.43,141.35,41.47435476]
[1768506491299,17.04170812,141.43,141.35,44.96862076]
[1768506491497,0.28,141.43,141.37,41.19435476]
[1768506491694,16.73547067,141.46,141.38,41.47435476]